bitfinex/quotes_SOLUSD_20220128
["timestamp","ask_amount","ask_price","bid_price","bid_amount"]
[1643329234649,1.53528569,90.097,89.923,6.0]
[1643329234849,1.53528569,90.097,89.95,166.57]
[1643329235049,58.82859091,90.119,89.961,112.1]
[1643329235050,1.53528569,90.11,89.961,112.1]
[1643329235252,1.53528569,90.116,89.971,6.0]
[1643329235450,47.2561,90.119,89.971,6.0]
[1643329235451,49.03167753,90.115,89.98,13.33]
[1643329235650,71.37399287,90.115,89.981,0.2]
[1643329235953,49.03167753,90.115,89.991,112.1]
[1643329236152,49.03167753,90.115,90.0,13.33]
[1643329236351,49.03167753,90.115,90.001,6.45]
[1643329236551,49.03167753,90.115,90.011,6.0]
[1643329236752,49.03167753,90.115,90.02,13.33]
[1643329236950,49.03167753,90.115,90.021,0.2]
[1643329237152,49.03167753,90.115,90.03,6.0]
[1643329237352,0.25,90.114,90.031,0.25]
[1643329237553,0.25,90.114,90.031,6.45]
[1643329237751,49.03167753,90.115,90.031,0.45]
[1643329238255,49.03167753,90.115,90.04,6.0]
[1643329238652,49.03167753,90.115,90.041,0.25]
[1643329238852,49.03167753,90.115,90.032,6.0]
[1643329239053,0.25,90.114,90.041,6.0]
[1643329239252,0.25,90.114,90.042,0.25]
[1643329239857,0.25,90.114,90.023,0.2]
[1643329240055,6.0,90.105,90.003,0.2]
[1643329240254,0.25,90.104,90.001,0.2]
[1643329240460,6.0,90.103,89.963,0.2]
[1643329240657,6.0,90.103,89.977,1.98780224]
[1643329240857,6.0,90.094,89.98,16.6673]
[1643329241056,48.23547223,90.093,89.981,0.2]
[1643329241255,48.48547223,90.093,89.981,0.45]
[1643329241458,6.0,90.083,89.981,0.45]
[1643329241656,112.1,90.082,89.982,1.98780224]
[1643329241856,6.25,90.082,89.983,0.25]
[1643329242058,6.0,90.072,89.983,0.25]
[1643329242258,37.49657381,90.071,89.984,1.98780224]
[1643329242658,6.0,90.061,89.984,1.98780224]
[1643329242858,0.25,90.06,89.984,1.98780224]
[1643329243858,0.25,90.06,89.985,0.25]
[1643329244157,0.25,90.06,89.986,1.98780224]
[1643329244359,0.25,90.06,89.987,0.25]
[1643329244860,37.24657381,90.071,90.0,16.6636]
[1643329245061,37.24657381,90.071,90.001,0.2]
[1643329245261,37.24657381,90.071,90.001,2.43780224]
[1643329245460,37.24657381,90.071,90.002,1.98780224]
[1643329245861,37.24657381,90.071,90.003,0.25]
[1643329246261,37.24657381,90.071,90.004,1.98780224]
[1643329246661,37.24657381,90.071,90.005,0.25]
[1643329247061,37.24657381,90.071,90.006,1.98780224]
[1643329247264,0.25,90.07,90.005,0.25]
[1643329247463,55.0,90.068,89.963,22.7719]
[1643329247666,0.25,90.07,89.947,16.6131]
[1643329247667,6.0,90.058,89.947,16.6131]
[1643329247860,112.35,90.057,89.918,1.50294211]
[1643329248061,112.35,90.057,89.894,47.1979]
[1643329248062,6.0,90.047,89.915,1.50294211]
[1643329248264,13.33,90.04,89.908,1.50294211]
[1643329248462,13.33,90.04,89.912,17.85020345]
[1643329248668,6.0,90.03,89.912,17.85020345]
[1643329248865,0.25,90.029,89.912,17.85020345]
[1643329249064,6.25,90.029,89.91,13.33]
[1643329249465,6.25,90.029,89.911,1.97723606]
[1643329249991,6.0,90.028,89.911,1.97723606]
[1643329250194,6.0,90.028,89.912,0.25]
[1643329250393,6.0,90.019,89.92,16.6771]
[1643329250594,48.52532749,90.018,89.92,30.0071]
[1643329250801,48.52532749,90.018,89.921,132.17743951]
[1643329250992,6.0,90.008,89.931,118.1]
[1643329251197,6.0,90.008,89.94,13.33]
[1643329251492,6.0,90.008,89.941,0.25]
[1643329251692,6.0,90.008,89.941,2.22723606]
[1643329251892,0.25,90.007,89.941,2.22723606]
[1643329252094,48.52532749,90.018,89.942,1.97723606]
[1643329252293,0.25,90.007,89.943,0.25]
[1643329253303,48.52532749,90.018,89.943,0.25]
[1643329253304,0.25,90.017,89.943,0.25]
[1643329253499,6.0,90.008,89.932,0.45]
[1643329253698,0.25,90.017,89.944,1.97723606]
[1643329253897,0.25,90.017,89.945,0.25]
[1643329254609,6.0,90.008,89.911,0.2]
[1643329254800,0.25,90.007,89.911,0.2]
[1643329255010,118.35,90.007,89.911,0.2]
[1643329255199,118.35,90.007,89.9,0.2]
[1643329255599,118.35,90.007,89.9,1.97723606]
[1643329255999,118.35,90.007,89.901,1.97723606]
[1643329256200,6.25,90.007,89.901,1.97723606]
[1643329256404,6.25,90.007,89.902,0.25]
[1643329256603,6.25,90.007,89.911,6.0]
[1643329256801,6.25,90.007,89.912,0.25]
[1643329257003,6.25,90.007,89.912,2.22723606]
[1643329257400,6.25,90.007,89.913,1.97723606]
[1643329257801,6.25,90.007,89.914,0.25]
[1643329257999,6.0,90.007,89.914,0.25]
[1643329258202,6.0,90.007,89.915,1.9836549]
[1643329258404,6.0,90.007,89.916,0.25]
[1643329258800,6.0,90.007,89.895,0.2]
[1643329259203,0.25,90.006,89.896,1.9836549]
[1643329259605,0.25,90.006,89.9,23.76629745]
[1643329259805,0.25,90.006,89.901,0.2]
[1643329260006,0.25,90.006,89.901,2.1836549]
[1643329260206,0.25,90.006,89.902,1.9836549]
[1643329261108,0.25,90.006,89.902,19.83385835]
[1643329261306,0.25,90.006,89.903,0.2]
[1643329261507,0.25,90.006,89.903,2.1836549]
[1643329261706,0.25,90.006,89.904,17.85020345]
[1643329261905,0.25,90.006,89.905,0.2]
[1643329262107,0.25,90.006,89.905,2.1836549]
[1643329262307,0.25,90.006,89.91,16.6791]
[1643329262507,0.25,90.006,89.911,0.2]
[1643329262706,0.25,90.006,89.911,0.45]
[1643329262908,0.25,90.006,89.912,1.9836549]
[1643329263307,0.25,90.006,89.913,0.25]
[1643329263708,0.25,90.006,89.914,1.9836549]
[1643329263909,0.25,90.006,89.915,1.65538468]
[1643329264207,0.25,90.006,89.916,1.9836549]
[1643329264409,0.25,90.006,89.917,0.25]
[1643329264708,0.25,90.006,89.918,1.9836549]
[1643329265109,0.25,90.006,89.919,0.25]
[1643329265508,0.25,90.006,89.92,1.9836549]
[1643329265912,0.25,90.006,89.921,0.25]
[1643329266312,0.25,90.006,89.922,1.9836549]
[1643329266513,0.25,90.006,89.921,0.25]
[1643329267111,0.25,90.006,89.916,0.25]
[1643329267813,0.25,90.006,89.917,1.9836549]
[1643329268014,0.25,90.006,89.911,0.25]
[1643329268213,0.25,90.006,89.901,0.25]
[1643329268414,0.25,90.006,89.897,0.25]
[1643329268645,6.0,90.005,89.897,0.25]
[1643329268815,70.8893975,90.004,89.902,1.9836549]
[1643329269016,6.0,89.994,89.902,1.9836549]
[1643329269217,6.0,89.994,89.903,0.25]
[1643329269415,0.25,89.993,89.903,0.25]
[1643329269614,0.25,89.993,89.904,1.9836549]
[1643329269815,0.25,89.993,89.905,2.63509724]
[1643329270217,0.25,89.993,89.906,1.9836549]
[1643329270617,0.25,89.993,89.907,0.25]
[1643329271019,0.25,89.993,89.908,1.9836549]
[1643329271420,0.25,89.993,89.909,0.25]
[1643329271723,0.25,89.993,89.91,18.6622549]
[1643329271920,0.25,89.993,89.911,0.2]
[1643329272120,0.25,89.993,89.911,2.4336549]
[1643329272322,0.25,89.993,89.912,1.9836549]
[1643329272821,0.25,89.993,89.913,0.25]
[1643329273825,0.25,89.993,89.901,0.45]
[1643329274023,6.25,89.993,89.913,1.9836549]
[1643329274222,6.25,89.993,89.901,0.45]
[1643329274422,6.25,89.993,89.914,0.25]
[1643329274626,6.25,89.993,89.907,9.42396291]
[1643329274823,6.25,89.993,89.908,0.25]
[1643329275024,6.25,89.993,89.908,2.2336549]
[1643329275224,6.25,89.993,89.908,0.25]
[1643329275624,6.25,89.993,89.901,1.50294211]
[1643329275825,6.25,89.993,89.898,1.50294211]
[1643329276026,23.0869,89.992,89.902,1.9836549]
[1643329276246,0.25,89.991,89.905,1.50294211]
[1643329276449,46.98787048,89.981,89.904,1.50294211]
[1643329276750,46.98787048,89.981,89.903,1.50294211]
[1643329276951,6.0,89.971,89.905,0.25]
[1643329277148,6.0,89.971,89.904,0.25]
[1643329277348,0.25,89.97,89.91,1.50294211]
[1643329277756,0.25,89.97,89.911,0.25]
[1643329278548,6.25,89.97,89.911,0.25]
[1643329278747,6.0,89.97,89.906,0.25]
[1643329278954,0.25,89.969,89.908,1.50294211]
[1643329279150,0.25,89.969,89.909,1.50294211]
[1643329279351,0.25,89.969,89.91,1.75294211]
[1643329279553,6.0,89.97,89.911,1.75294211]
[1643329279751,6.0,89.97,89.915,1.50294211]
[1643329279952,3.06067639,90.038,89.906,0.00631405]
[1643329279953,0.32496042,89.96,89.906,0.00631405]
[1643329280153,13.33,89.95,89.774,3.0]
[1643329280352,13.33,89.94,89.811,3.0394152]
[1643329280557,6.30712453,89.93,89.81,381.41979962]
[1643329280752,13.33,89.92,89.766,690.64808386]
[1643329280954,24.5962,89.919,89.766,690.64808386]
[1643329281154,6.0,89.91,89.767,41.33787317]
[1643329281455,30.8726,89.909,89.77,13.33]
[1643329281653,6.1,89.908,89.77,13.33]
[1643329281854,22.20898712,89.897,89.77,13.33]
[1643329282054,6.0,89.887,89.77,13.33]
[1643329282255,0.25,89.886,89.77,13.33]
[1643329282452,9.31535863,89.879,89.77,13.33]
[1643329282652,9.41535863,89.879,89.771,112.1]
[1643329282853,6.0,89.869,89.771,112.1]
[1643329283352,0.25,89.868,89.77,13.33]
[1643329283552,6.0,89.867,89.77,13.33]
[1643329283756,0.25,89.866,89.77,13.33]
[1643329283960,6.0,89.867,89.771,112.1]
[1643329284159,6.0,89.867,89.78,6.0]
[1643329284358,0.1,89.877,89.781,52.31778108]
[1643329284359,0.25,89.866,89.781,52.31778108]
[1643329284760,0.25,89.866,89.782,0.25]
[1643329285159,0.25,89.866,89.782,0.35]
[1643329285360,0.25,89.867,89.782,0.35]
[1643329285962,0.1,89.877,89.782,0.35]
[1643329286363,0.1,89.918,89.79,16.7013]
[1643329286563,0.1,89.918,89.8,13.33]
[1643329286761,0.1,89.918,89.801,0.35]
[1643329286961,22.26185285,89.918,89.801,37.18021484]
[1643329287161,0.1,89.917,89.802,0.1]
[1643329287361,24.8874,89.917,89.802,0.1]
[1643329287562,6.0,89.907,89.802,0.1]
[1643329287767,24.1762,89.906,89.802,0.1]
[1643329287965,0.1,89.905,89.802,0.1]
[1643329288168,6.0,89.896,89.79,6.0]
[1643329288366,118.35,89.895,89.781,0.1]
[1643329288564,0.1,89.894,89.781,0.1]
[1643329288765,0.1,89.894,89.757,0.1]
[1643329288966,22.7089,89.89,89.769,6.0]
[1643329289170,22.7089,89.89,89.76,44.94705346]
[1643329289171,0.1,89.889,89.77,13.33]
[1643329289366,6.0,89.884,89.771,0.1]
[1643329289668,0.25,89.889,89.771,16.09130144]
[1643329289669,0.1,89.889,89.771,16.09130144]
[1643329289865,111.9,90.035,89.78,172.57]
[1643329289866,0.1,89.918,89.78,172.57]
[1643329290066,11.58707685,89.943,89.79,30.031]
[1643329290268,0.1,89.942,89.791,23.2383]
[1643329290466,0.1,89.942,89.792,0.1]
[1643329290467,6.0,89.933,89.792,0.1]
[1643329290669,26.59013814,89.932,89.801,6.0]
[1643329290866,0.1,89.931,89.81,13.33]
[1643329291067,6.0,89.922,89.82,6.0]
[1643329291266,0.25,89.921,89.83,13.33]
[1643329291478,6.0,89.922,89.831,38.10239182]
[1643329291680,0.1,89.931,89.832,0.1]
[1643329291870,0.1,89.968,89.842,112.1]
[1643329292068,0.1,89.997,89.852,6.0]
[1643329292268,0.1,89.997,89.853,0.25]
[1643329292469,0.1,89.997,89.87,16.6857]
[1643329292667,30.57679542,89.997,89.88,13.33]
[1643329292867,0.1,89.996,89.881,0.35]
[1643329293366,0.1,89.996,89.881,11.561857]
[1643329293567,0.1,89.996,89.882,11.311857]
[1643329293772,0.1,89.996,89.883,0.35]
[1643329293974,6.0,89.987,89.883,0.35]
[1643329294374,0.25,89.986,89.893,44.39352895]
[1643329294572,0.25,89.986,89.894,0.1]
[1643329294774,0.25,89.986,89.894,0.35]
[1643329295773,0.25,89.986,89.893,44.24352895]
[1643329296373,0.25,89.996,89.893,44.24352895]
[1643329297374,0.25,89.996,89.894,0.25]
[1643329297577,6.0,89.987,89.894,0.25]
[1643329297779,0.25,89.986,89.894,0.25]
[1643329299076,6.25,89.986,89.88,6.0]
[1643329299279,6.25,89.986,89.871,0.25]
[1643329299280,6.25,89.986,89.881,0.25]
[1643329299480,6.0,89.985,89.871,0.25]
[1643329299678,6.0,89.976,89.871,0.25]
[1643329299877,1.44755033,89.975,89.871,39.66345766]
[1643329300080,6.0,89.965,89.871,39.66345766]
[1643329300280,0.25,89.964,89.871,39.66345766]
[1643329300778,27.34276897,89.959,89.871,0.25]
[1643329301185,6.0,89.949,89.855,6.0]
[1643329301385,0.25,89.948,89.856,0.25]
[1643329301980,6.25,89.948,89.856,0.25]
[1643329302584,6.25,89.948,89.861,6.0]
[1643329302793,6.25,89.948,89.839,6.0]
[1643329302988,6.0,89.94,89.82,16.6964]
[1643329303187,13.33,89.93,89.82,16.6964]
[1643329303387,0.25,89.929,89.802,0.1]
[1643329303588,6.0,89.92,89.803,6.0]
[1643329303788,0.25,89.919,89.795,112.2]
[1643329303984,6.25,89.919,89.796,0.1]
[1643329304388,6.0,89.918,89.796,0.1]
[1643329304586,6.25,89.919,89.798,112.1]
[1643329304784,6.25,89.919,89.799,0.35]
[1643329305284,6.25,89.919,89.8,16.6995]
[1643329305485,6.25,89.919,89.801,112.2]
[1643329305686,112.1,89.918,89.802,0.1]
[1643329305886,13.33,89.91,89.801,0.1]
[1643329306085,13.33,89.91,89.794,37.87475214]
[1643329306086,6.0,89.9,89.795,0.1]
[1643329306298,0.25,89.899,89.795,0.1]
[1643329306485,6.25,89.899,89.795,0.1]
[1643329307086,6.25,89.899,89.795,0.35]
[1643329307687,6.25,89.899,89.795,0.1]
[1643329307887,13.33,89.89,89.795,0.1]
[1643329308085,6.0,89.88,89.795,0.1]
[1643329308285,0.25,89.879,89.795,0.1]
[1643329308486,6.25,89.879,89.795,0.1]
[1643329308691,6.0,89.87,89.795,0.1]
[1643329308891,25.91014742,89.869,89.795,0.1]
[1643329309090,6.0,89.87,89.795,0.1]
[1643329309291,2.95669142,89.899,89.795,0.1]
[1643329309493,6.0,89.889,89.796,28.05881908]
[1643329309696,47.5312,89.937,89.804,6.0]
[1643329309916,47.5312,89.937,89.806,6.0]
[1643329310114,6.0,89.927,89.811,44.31974714]
[1643329310317,6.0,89.927,89.812,0.25]
[1643329310513,6.0,89.926,89.812,0.25]
[1643329310714,6.0,89.926,89.813,10.47140089]
[1643329310916,0.25,89.925,89.813,10.47140089]
[1643329311130,19.33,89.92,89.811,44.31974714]
[1643329311318,120.44435197,89.919,89.811,44.31974714]
[1643329311520,6.0,89.909,89.811,44.31974714]
[1643329311920,0.25,89.908,89.811,44.31974714]
[1643329312117,6.0,89.907,89.811,44.31974714]
[1643329312325,0.25,89.906,89.801,0.1]
[1643329312518,112.35,89.906,89.801,0.1]
[1643329312717,158.4955,89.906,89.791,0.25]
[1643329312917,6.0,89.896,89.791,0.25]
[1643329313417,23.57999378,89.894,89.791,0.25]
[1643329313623,6.0,89.884,89.79,0.1]
[1643329313818,0.25,89.883,89.79,0.1]
[1643329314020,6.25,89.883,89.79,0.1]
[1643329315118,6.0,89.882,89.79,0.1]
[1643329315319,0.25,89.881,89.79,0.1]
[1643329316119,0.25,89.881,89.79,0.35]
[1643329318024,6.0,89.874,89.79,0.35]
[1643329318221,6.0,89.874,89.79,112.45]
[1643329318420,0.25,89.873,89.791,0.1]
[1643329319422,6.0,89.868,89.791,0.1]
[1643329319825,0.25,89.867,89.791,0.1]
[1643329322629,0.25,89.867,89.791,0.35]
[1643329323225,0.25,89.877,89.791,0.35]
[1643329325526,6.0,89.868,89.791,0.35]
[1643329325936,0.25,89.867,89.791,0.35]
[1643329326129,0.25,89.867,89.79,0.25]
[1643329326327,0.25,89.867,89.772,0.35]
[1643329326527,6.25,89.867,89.772,0.35]
[1643329326730,6.0,89.867,89.772,0.35]
[1643329326932,6.0,89.867,89.76,112.1]
[1643329326933,6.0,89.867,89.774,44.8778271]
[1643329327130,6.0,89.867,89.775,0.1]
[1643329327328,6.0,89.867,89.775,0.35]
[1643329327731,6.0,89.867,89.776,10.47140089]
[1643329327928,6.0,89.867,89.777,0.1]
[1643329328129,0.25,89.866,89.777,0.35]
[1643329328329,0.25,89.866,89.78,16.7032]
[1643329328531,0.25,89.866,89.781,0.1]
[1643329328731,0.25,89.866,89.781,0.35]
[1643329329532,40.816102,89.791,89.781,0.35]
[1643329329733,6.25,89.866,89.781,0.35]
[1643329330032,6.0,89.866,89.79,16.701]
[1643329330240,24.9606,89.889,89.791,0.1]
[1643329330433,24.9606,89.889,89.792,112.1]
[1643329330634,6.0,89.879,89.793,0.1]
[1643329330832,27.85952605,89.878,89.793,35.87917629]
[1643329331032,6.0,89.868,89.794,0.1]
[1643329331238,0.25,89.867,89.794,0.1]
[1643329331433,6.0,89.868,89.794,0.1]
[1643329331434,27.85952605,89.878,89.794,0.1]
[1643329331733,6.0,89.868,89.794,0.1]
[1643329331934,27.85952605,89.878,89.794,0.1]
[1643329332334,6.0,89.868,89.794,3.1419474]
[1643329332536,24.0488,89.888,89.794,3.1419474]
[1643329332748,24.2525,89.929,89.801,112.1]
[1643329332936,24.2525,89.929,89.81,13.33]
[1643329333139,6.0,89.899,89.81,13.33]
[1643329333337,6.0,89.899,89.811,10.47140089]
[1643329333634,27.65988254,89.898,89.821,6.0]
[1643329333835,0.25,89.897,89.812,42.86993253]
[1643329334036,0.25,89.897,89.822,6.0]
[1643329334435,0.25,89.897,89.823,0.25]
[1643329335436,0.25,89.897,89.813,0.25]
[1643329335838,27.65988254,89.898,89.813,0.25]
[1643329336836,27.65988254,89.898,89.822,6.0]
[1643329337244,27.65988254,89.898,89.823,0.25]
[1643329338038,0.25,89.897,89.823,0.25]
[1643329338237,0.25,89.897,89.813,0.25]
[1643329339641,27.65988254,89.898,89.813,10.72140089]
[1643329339842,0.25,89.897,89.814,3.0377831]
[1643329340243,0.25,89.897,89.815,0.25]
[1643329341246,0.25,89.897,89.813,0.25]
[1643329348881,24.7647,89.908,89.813,0.25]
[1643329349185,84.09290081,89.979,89.814,15.48279408]
[1643329349381,84.09290081,89.979,89.823,112.1]
[1643329349382,11.62183085,89.962,89.823,112.1]
[1643329349682,11.62183085,89.962,89.833,6.0]
[1643329349881,24.8244652,89.948,89.834,180.44352172]
[1643329350082,24.8244652,89.948,89.844,6.0]
[1643329350382,49.27192227,89.948,89.85,16.05]
[1643329350686,24.8244652,89.948,89.851,36.70120942]
[1643329350882,48.1463652,89.948,89.851,38.92972961]
[1643329351081,48.1463652,89.948,89.851,49.97529717]
[1643329351282,48.1463652,89.948,89.852,13.02408775]
[1643329351781,48.1463652,89.948,89.853,13.20365415]
[1643329351981,48.1463652,89.948,89.853,10.97513396]
[1643329352282,0.25,89.947,89.853,10.97513396]
[1643329352482,48.1463652,89.948,89.853,10.97513396]
[1643329352686,6.0,89.938,89.854,1.97852019]
[1643329353085,6.0,89.938,89.855,10.97513396]
[1643329353286,6.0,89.938,89.855,11.22513396]
[1643329353483,6.0,89.938,89.856,1.97852019]
[1643329353690,6.0,89.938,89.856,12.95365415]
[1643329353885,6.0,89.938,89.857,0.25]
[1643329354088,6.0,89.938,89.86,16.6883]
[1643329354286,6.0,89.938,89.861,0.25]
[1643329354586,24.0746,89.967,89.861,32.22908901]
[1643329354787,24.0746,89.967,89.861,30.25056882]
[1643329355083,6.0,89.957,89.862,31.97908901]
[1643329355284,6.0,89.957,89.863,0.25]
[1643329355487,25.13179679,89.956,89.872,6.0]
[1643329355686,25.13179679,89.956,89.88,16.05]
[1643329355889,0.25,89.955,89.881,39.63693872]
[1643329357689,0.25,89.955,89.881,41.61545891]
[1643329358690,0.25,89.955,89.891,6.0]
[1643329359694,0.25,89.955,89.88,16.05]
[1643329360092,0.25,89.955,89.881,0.25]
[1643329360494,0.25,89.955,89.874,6.0]
[1643329360795,0.25,89.955,89.875,48.98609352]
[1643329369924,0.25,89.955,89.885,6.0]
[1643329370101,0.25,89.955,89.875,48.98609352]
[1643329372303,25.13179679,89.956,89.876,1.97852019]
[1643329372704,25.13179679,89.956,89.877,0.25]
[1643329373202,25.13179679,89.956,89.877,2.22852019]
[1643329373805,0.25,89.955,89.877,2.22852019]
[1643329374207,0.25,89.955,89.877,1.97852019]
[1643329374406,0.25,89.955,89.875,48.73609352]
[1643329374609,24.45916224,89.954,89.875,48.73609352]
[1643329374807,0.25,89.953,89.875,48.73609352]
[1643329375106,25.13179679,89.956,89.875,48.73609352]
[1643329375308,25.13179679,89.956,89.863,1.97852019]
[1643329375309,112.1,89.943,89.863,1.97852019]
[1643329375508,6.0,89.933,89.83,5.80515659]
[1643329375707,6.0,89.933,89.81,71.6934]
[1643329375908,6.0,89.93,89.812,19.02781819]
[1643329376213,22.05,89.93,89.812,19.02781819]
[1643329376409,58.70874038,89.929,89.813,39.27398728]
[1643329376611,112.1,89.918,89.813,41.25250747]
[1643329376813,24.4787,89.917,89.813,39.27398728]
[1643329377010,143.23179679,89.907,89.813,39.27398728]
[1643329377209,24.097,89.906,89.813,39.27398728]
[1643329377431,6.0,89.9,89.813,39.27398728]
[1643329377632,112.1,89.895,89.813,39.27398728]
[1643329377836,0.25,89.894,89.813,39.27398728]
[1643329378136,6.54254896,89.884,89.813,39.27398728]
[1643329378336,0.25,89.883,89.813,39.27398728]
[1643329378534,6.54254896,89.884,89.813,39.27398728]
[1643329378733,6.54254896,89.884,89.814,0.25]
[1643329379845,0.25,89.883,89.814,0.25]
[1643329380236,0.25,89.883,89.814,2.22852019]
[1643329380436,0.25,89.884,89.814,2.22852019]
[1643329380836,48.6791,89.894,89.814,2.22852019]
[1643329381036,25.25929775,89.893,89.814,2.22852019]
[1643329382236,0.25,89.892,89.814,2.22852019]
[1643329382436,25.25929775,89.893,89.814,2.22852019]
[1643329383542,25.25929775,89.893,89.814,1.97852019]
[1643329383740,0.25,89.892,89.815,0.25]
[1643329383937,0.25,89.892,89.802,0.1]
[1643329384139,6.0,89.883,89.801,0.1]
[1643329384336,6.0,89.883,89.794,5.80732408]
[1643329384337,0.25,89.882,89.794,5.80732408]
[1643329384539,6.25,89.882,89.789,0.1]
[1643329384736,6.25,89.882,89.795,1.97852019]
[1643329384935,6.0,89.88,89.795,1.97852019]
[1643329385137,6.0,89.871,89.796,36.09145511]
[1643329385338,0.25,89.87,89.797,0.1]
[1643329385538,6.0,89.869,89.797,0.1]
[1643329385938,0.25,89.868,89.797,0.1]
[1643329387741,0.25,89.868,89.796,0.25]
[1643329387942,0.25,89.868,89.774,0.1]
[1643329388144,16.05,89.86,89.774,0.1]
[1643329388342,0.25,89.859,89.731,3.12690357]
[1643329388544,6.0,89.85,89.732,41.62958499]
[1643329388741,6.0,89.85,89.733,0.1]
[1643329388943,6.25,89.849,89.733,0.1]
[1643329389341,16.7173,89.84,89.733,0.1]
[1643329389543,6.0,89.83,89.733,0.1]
[1643329389744,22.8787,89.829,89.733,0.1]
[1643329389942,28.8787,89.829,89.734,1.97852019]
[1643329390443,24.7202,89.828,89.734,1.97852019]
[1643329390644,30.7202,89.828,89.734,1.97852019]
[1643329390943,0.25,89.827,89.734,1.97852019]
[1643329391144,6.0,89.819,89.734,1.97852019]
[1643329391344,24.38767503,89.818,89.734,1.97852019]
[1643329391542,30.38767503,89.818,89.734,1.97852019]
[1643329391744,6.0,89.818,89.734,1.97852019]
[1643329391947,6.0,89.818,89.74,16.05]
[1643329392146,6.0,89.818,89.741,0.1]
[1643329392448,6.0,89.839,89.741,2.32852019]
[1643329392646,31.59367113,89.837,89.742,1.97852019]
[1643329392845,31.59367113,89.837,89.743,0.25]
[1643329393046,6.0,89.827,89.743,0.25]
[1643329393249,4.63650081,89.945,89.743,0.25]
[1643329393250,16.05,89.87,89.75,16.7082]
[1643329393449,46.5624,89.875,89.76,16.05]
[1643329393649,6.0,89.86,89.761,0.1]
[1643329393849,6.0,89.865,89.754,6.0]
[1643329394048,25.83212631,89.864,89.756,43.46237104]
[1643329394249,25.83212631,89.864,89.757,0.1]
[1643329394451,25.83212631,89.864,89.76,16.7066]
[1643329394650,6.0,89.854,89.761,0.1]
[1643329395051,23.5548,89.863,89.757,0.1]
[1643329395052,6.0,89.853,89.757,0.1]
[1643329395251,6.25,89.853,89.757,0.1]
[1643329395649,23.9255,89.852,89.757,0.1]
[1643329395850,0.25,89.851,89.757,0.35]
[1643329396050,5.84221944,89.841,89.757,0.35]
[1643329396250,0.25,89.84,89.757,0.35]
[1643329396451,0.25,89.84,89.758,1.97852019]
[1643329396851,0.25,89.84,89.759,0.25]
[1643329400661,0.25,89.84,89.757,0.35]
[1643329402561,6.0,89.831,89.757,0.35]
[1643329402765,0.25,89.83,89.757,0.35]
[1643329403164,6.25,89.83,89.757,0.35]
[1643329403563,5.84221944,89.841,89.758,1.9849093]
[1643329403763,0.25,89.84,89.759,0.25]
[1643329403966,59.99260759,89.878,89.77,16.05]